bitfinex-derivatives/quotes_SOLF0:USTF0_20250424
["timestamp","ask_amount","ask_price","bid_price","bid_amount"]
[1745512705344,6.6081,151.27,151.23,14.0423475]
[1745512705539,24.96,151.28,151.22,1.65331791]
[1745512705745,24.96,151.28,151.22,8.26311791]
[1745512706345,24.96,151.28,151.23,6.6096]
[1745512706551,24.96,151.28,151.24,1.65331791]
[1745512706853,6.608,151.27,151.24,1.65331791]
[1745512707051,24.96,151.28,151.24,1.65331791]
[1745512707252,39.0023475,151.28,151.25,1.65331791]
[1745512707445,28.8744,151.28,151.25,1.65331791]
[1745512707846,28.8744,151.28,151.26,1.65331791]
[1745512708052,6.6079,151.27,151.26,1.65331791]
[1745512708547,1.9395,151.29,151.27,6.6079]
[1745512708748,1.9395,151.29,151.28,1.65331791]
[1745512709551,8.5466,151.29,151.28,1.65331791]
[1745512709749,1.9395,151.29,151.2,24.96]
[1745512709949,14.0423475,151.28,151.2,24.96]
[1745512710151,6.6091,151.25,151.22,6.6098]
[1745512710551,6.6093,151.24,151.21,6.6103]
[1745512710950,14.0423475,151.28,151.2,24.96]
[1745512711248,6.6093,151.24,151.21,6.6102]
[1745512711547,6.6093,151.24,151.2,24.96]
[1745512711747,6.6093,151.24,151.21,6.6104]
[1745512712250,6.6089,151.25,151.22,6.61]
[1745512712450,24.96,151.27,151.2,24.96]
[1745512712852,24.96,151.27,151.21,14.0423475]
[1745512713345,6.609,151.25,151.22,6.61]
[1745512713546,24.96,151.27,151.21,14.0423475]
[1745512713746,24.96,151.27,151.2,24.96]
[1745512713945,14.0423475,151.26,151.17,15.9525475]
[1745512714252,14.0423475,151.26,151.18,24.94]
[1745512714550,6.6107,151.21,151.18,31.5516]
[1745512715153,6.6102,151.22,151.19,6.6113]
[1745512715450,15.9022475,151.26,151.18,24.94]
[1745512715753,6.6097,151.23,151.2,6.6107]
[1745512716354,6.609,151.25,151.22,6.6099]
[1745512716851,24.96,151.27,151.22,6.6099]
[1745512717151,24.96,151.27,151.19,14.0423475]
[1745512717747,6.6094,151.24,151.21,6.6104]
[1745512717948,24.96,151.27,151.19,14.0423475]
[1745512718148,24.96,151.27,151.21,14.0423475]
[1745512718443,1.8599,151.3,151.23,14.0423475]
[1745512718750,1.8599,151.3,151.23,38.9223475]
[1745512719056,6.6077,151.28,151.26,6.6082]
[1745512719254,1.8599,151.3,151.23,38.9223475]
[1745512719554,1.8599,151.3,151.24,6.6088]
[1745512720056,6.6077,151.28,151.25,6.6087]
[1745512720355,15.9022475,151.3,151.23,24.88]
[1745512720555,6.6092,151.24,151.23,24.88]
[1745512720754,15.9022475,151.3,151.23,24.88]
[1745512720956,15.9022475,151.3,151.2,24.88]
[1745512721253,6.6085,151.26,151.23,6.6095]
[1745512722059,6.6085,151.26,151.24,1.65230768]
[1745512722562,6.6085,151.26,151.25,1.65230768]
[1745512723357,6.61,151.23,151.18,24.88]
[1745512723559,6.61,151.23,151.2,6.6108]
[1745512725257,6.6094,151.24,151.21,6.6104]
[1745512725453,6.6094,151.24,151.19,14.0423475]
[1745512725657,26.8133,151.27,151.19,14.0423475]
[1745512726158,24.88,151.27,151.19,14.0423475]
[1745512726754,24.88,151.27,151.21,14.0423475]
[1745512726953,6.6081,151.27,151.21,14.0423475]
[1745512727754,6.6081,151.27,151.24,6.609]
[1745512728363,6.6076,151.28,151.25,6.6086]
[1745512728859,6.608,151.27,151.24,6.609]
[1745512729056,40.7822475,151.3,151.24,6.609]
[1745512729460,14.0423475,151.28,151.23,6.6095]
[1745512729952,14.0423475,151.28,151.19,14.0423475]
[1745512730461,6.6095,151.24,151.21,6.6105]
[1745512731557,6.6097,151.23,151.21,6.6105]
[1745512731958,6.6097,151.23,151.2,6.6107]
[1745512732261,38.9223475,151.26,151.18,24.88]
[1745512732652,38.9223475,151.26,151.19,6.6111]
[1745512732856,6.6104,151.22,151.19,6.6111]
[1745512733959,6.6106,151.21,151.19,6.6111]
[1745512734858,6.6109,151.2,151.18,24.88]
[1745512735058,14.0423475,151.22,151.15,2.0208]
[1745512735361,14.0423475,151.22,151.17,1.65295674]
[1745512735362,6.612,151.18,151.17,1.65295674]
[1745512743569,6.6116,151.19,151.17,1.65295674]
[1745512743869,6.6116,151.19,151.18,1.65295674]
[1745512744570,8.555,151.21,151.18,1.65295674]
[1745512744767,6.6108,151.21,151.19,1.65295674]
[1745512744967,1.9656,151.25,151.19,15.69530424]
[1745512745266,28.8239,151.26,151.2,1.65295674]
[1745512745769,28.8239,151.26,151.21,8.26325674]
[1745512746168,28.8239,151.26,151.22,1.65295674]
[1745512746965,28.8239,151.26,151.23,1.65295674]
[1745512747468,6.6087,151.25,151.24,1.65295674]
[1745512748571,6.61,151.23,151.2,6.6108]
[1745512749272,6.61,151.23,151.21,6.6104]
[1745512750073,6.61,151.23,151.22,1.65260117]
[1745512751169,26.8072,151.29,151.22,1.65260117]
[1745512751676,6.609,151.25,151.22,8.26230117]
[1745512751872,26.8072,151.29,151.22,1.65260117]
[1745512752173,6.609,151.25,151.23,1.65260117]
[1745512752874,6.609,151.25,151.24,1.65260117]
[1745512755276,6.6085,151.26,151.24,1.65260117]
[1745512756075,6.608,151.27,151.25,1.65260117]
[1745512756276,24.88,151.29,151.25,1.65260117]
[1745512756480,6.6072,151.29,151.26,8.26070117]
[1745512756679,42.9452475,151.32,151.26,1.65260117]
[1745512756881,42.9452475,151.32,151.27,1.65260117]
[1745512757079,42.9452475,151.32,151.28,1.65260117]
[1745512757779,6.607,151.29,151.26,6.608]
[1745512758083,42.9452475,151.32,151.26,6.608]
[1745512758379,42.9452475,151.32,151.27,1.65202194]
[1745512758676,28.9029,151.32,151.27,1.65202194]
[1745512758878,6.6065,151.31,151.27,1.65202194]
[1745512759183,26.8693,151.32,151.28,1.65202194]
[1745512759483,6.6068,151.3,151.29,1.65202194]
[1745512759682,26.8693,151.32,151.29,1.65202194]
[1745512759882,24.88,151.32,151.3,1.65202194]
[1745512760182,6.6063,151.31,151.3,1.65202194]
[1745512760374,6.6063,151.31,151.29,6.6068]
[1745512760682,6.6063,151.31,151.25,38.9223475]
[1745512760980,6.6067,151.3,151.27,6.6076]
[1745512761182,6.6067,151.3,151.28,1.65178086]
[1745512761483,14.0423475,151.33,151.25,24.88]
[1745512761678,14.0423475,151.31,151.25,24.88]
[1745512761880,38.9223475,151.31,151.25,24.88]
[1745512762083,14.0423475,151.29,151.25,24.88]
[1745512762279,38.9223475,151.31,151.22,24.88]
[1745512762782,24.88,151.31,151.25,14.0423475]
[1745512763082,6.6068,151.3,151.27,6.6076]
[1745512763782,6.6068,151.3,151.28,1.65202657]
[1745512764085,6.6068,151.3,151.28,8.25942657]
[1745512764272,24.88,151.31,151.25,14.0423475]
[1745512764273,6.607,151.29,151.25,14.0423475]
[1745512764477,24.88,151.31,151.23,14.0423475]
[1745512764683,38.9223475,151.31,151.23,14.0423475]
[1745512764983,38.9223475,151.31,151.23,6.6094]
[1745512765285,38.9223475,151.31,151.24,1.65202893]
[1745512765485,38.9223475,151.31,151.25,1.65202893]
[1745512765486,6.6081,151.27,151.25,1.65202893]
[1745512766483,6.6081,151.27,151.26,1.65202893]
[1745512768792,6.6076,151.28,151.26,1.65202893]
[1745512768991,6.6076,151.28,151.27,1.65202893]
[1745512773888,6.6088,151.25,151.22,24.88]
[1745512774089,14.0423475,151.27,151.19,24.88]
[1745512774392,6.6094,151.24,151.19,24.88]
[1745512774695,6.6094,151.24,151.21,6.6102]
[1745512775296,38.9223475,151.27,151.19,24.88]
[1745512775487,6.6088,151.25,151.19,24.88]
[1745512775682,24.88,151.27,151.19,24.88]
[1745512775991,38.9223475,151.27,151.19,24.88]
[1745512776393,6.6101,151.22,151.2,6.6107]
[1745512776891,38.9223475,151.27,151.2,6.6107]
[1745512777190,6.6098,151.23,151.21,6.6104]
[1745512777689,6.6098,151.23,151.19,24.88]
[1745512777892,6.6098,151.23,151.2,6.6105]
[1745512778690,6.6103,151.22,151.2,6.6105]
[1745512778891,14.0423475,151.23,151.16,24.86]
[1745512779093,38.9023475,151.23,151.15,24.86]
[1745512779292,6.611,151.2,151.18,6.6116]
[1745512779992,6.611,151.2,151.15,24.86]
[1745512780198,14.0423475,151.21,151.15,24.86]
[1745512780399,14.0423475,151.21,151.13,3.7696]
[1745512780993,14.0423475,151.19,151.13,1.9069]
[1745512781297,14.0423475,151.19,151.12,1.9036]
[1745512781498,6.6133,151.15,151.12,6.6144]
[1745512782291,6.6133,151.15,151.11,24.88]
[1745512782292,6.6129,151.16,151.13,6.6139]
[1745512782598,38.9223475,151.19,151.11,24.88]
[1745512782801,6.6122,151.18,151.11,24.88]
[1745512783098,38.9223475,151.19,151.14,6.6133]
[1745512783593,24.88,151.19,151.16,6.6126]
[1745512784099,24.88,151.19,151.15,6.6129]
[1745512784499,24.88,151.19,151.12,14.0423475]
[1745512784695,14.0423475,151.17,151.11,24.88]
[1745512784899,14.0423475,151.17,151.09,355.0]
[1745512785100,14.0423475,151.15,151.09,355.0]
[1745512785302,6.6142,151.13,151.1,6.6151]
[1745512785990,6.6145,151.12,151.11,1.65358272]
[1745512787502,24.88,151.15,151.11,1.65358272]
[1745512787703,24.88,151.18,151.11,1.65358272]
[1745512788203,24.88,151.18,151.11,15.69593022]
[1745512788398,24.88,151.18,151.13,6.6137]
[1745512788399,6.6127,151.16,151.13,6.6137]
[1745512788702,6.6127,151.16,151.14,1.65358272]
[1745512789205,24.88,151.18,151.14,1.65358272]
[1745512789402,24.88,151.18,151.09,14.0423475]
[1745512789605,14.0423475,151.17,151.08,385.9298]
[1745512790303,14.0423475,151.17,151.09,1.65352749]
[1745512790498,6.6133,151.15,151.11,6.6146]
[1745512790703,14.0423475,151.17,151.11,6.6146]
[1745512791206,24.88,151.18,151.09,15.69587499]
[1745512791399,24.88,151.18,151.11,14.0423475]
[1745512791601,24.88,151.18,151.12,24.88]
[1745512791796,6.6125,151.17,151.14,6.6132]
[1745512792197,24.88,151.18,151.12,24.88]
[1745512792396,24.88,151.18,151.12,31.4941]
[1745512792702,24.88,151.18,151.12,24.88]
[1745512792905,6.6125,151.17,151.14,6.6135]
[1745512793099,24.88,151.18,151.12,24.88]
[1745512793704,6.6131,151.16,151.13,6.6138]
[1745512794506,6.6131,151.16,151.14,1.65325206]
[1745512794808,6.6131,151.16,151.13,6.6138]
[1745512795107,6.6132,151.15,151.13,6.6138]
[1745512795310,24.88,151.18,151.12,24.88]
[1745512795706,1.931,151.2,151.13,1.65326561]
[1745512795906,1.931,151.2,151.15,6.613]
[1745512796207,6.6121,151.18,151.15,6.613]
[1745512797006,6.6123,151.17,151.15,6.613]
[1745512797509,6.6123,151.17,151.14,6.6133]
[1745512797810,6.6128,151.16,151.14,6.6133]
[1745512798003,6.6128,151.16,151.13,6.6138]
[1745512798507,6.6128,151.16,151.14,1.65326561]
[1745512798811,6.6128,151.16,151.13,6.6138]
[1745512799310,6.6131,151.15,151.13,6.6138]
[1745512799506,1.931,151.2,151.14,1.65325423]
[1745512800110,6.613,151.16,151.13,6.6138]
[1745512800311,14.0423475,151.19,151.12,31.4943]
[1745512800605,6.6134,151.15,151.12,31.4943]
[1745512800809,14.0423475,151.19,151.12,24.88]
[1745512801309,6.6128,151.16,151.13,1.65332786]
[1745512801606,38.9223475,151.21,151.13,1.65332786]
[1745512802009,38.9223475,151.21,151.13,15.69567536]
[1745512802210,38.9223475,151.21,151.14,1.65332786]
[1745512802611,6.6125,151.17,151.14,8.26652786]
[1745512802813,6.6125,151.17,151.14,1.65332786]
[1745512803018,38.9223475,151.21,151.15,1.65332786]
[1745512803312,6.6121,151.18,151.16,6.6125]
[1745512804315,6.6121,151.18,151.15,6.6129]
[1745512804615,6.6123,151.17,151.16,1.65308991]
[1745512805315,6.612,151.18,151.16,1.65308991]
[1745512805517,6.612,151.18,151.16,8.26568991]
[1745512805717,6.611,151.2,151.16,10.67909055]
[1745512805916,24.88,151.21,151.18,9.02600064]
[1745512806118,9.02600064,151.23,151.18,15.63760064]
[1745512806314,24.88,151.24,151.18,9.02600064]
[1745512806617,33.90600064,151.24,151.19,6.6111]
[1745512807017,6.6103,151.22,151.19,6.6111]
[1745512807318,9.02600064,151.22,151.16,33.90600064]
[1745512807515,6.6116,151.19,151.17,1.65287623]
[1745512808415,6.6111,151.2,151.17,1.65287623]
[1745512808614,6.6111,151.2,151.18,1.65287623]
[1745512808816,9.02600064,151.22,151.18,1.65287623]
[1745512809519,6.6112,151.2,151.19,1.65287623]
[1745512809823,9.02600064,151.22,151.19,1.65287623]
[1745512810014,6.6107,151.21,151.19,1.65287623]
[1745512810319,33.90600064,151.24,151.18,9.02600064]
[1745512810519,9.02600064,151.22,151.18,9.02600064]
[1745512811018,15.63630064,151.22,151.18,9.02600064]
[1745512811219,33.90600064,151.24,151.2,9.02600064]
[1745512811718,6.609,151.25,151.23,6.6094]
[1745512811921,6.609,151.25,151.22,9.02600064]
[1745512812113,6.609,151.25,151.23,1.65277913]
[1745512812823,24.88,151.27,151.24,1.65277913]
[1745512813017,9.02600064,151.26,151.24,1.65277913]
[1745512813319,9.02600064,151.26,151.18,9.02600064]
[1745512813320,14.09841345,151.25,151.17,30.7969]
[1745512813514,14.09841345,151.25,151.17,26.8144]
[1745512814318,6.6103,151.22,151.19,6.6111]
[1745512815017,6.6103,151.22,151.2,1.65268004]
[1745512815320,6.6105,151.21,151.2,1.65268004]
[1745512816422,6.6103,151.22,151.2,8.26348004]
[1745512816713,6.6103,151.22,151.2,1.65268004]
[1745512816919,6.6103,151.22,151.21,1.65268004]
[1745512817923,20.70871345,151.22,151.21,1.65268004]
[1745512818122,6.6116,151.19,151.13,355.0]
[1745512818318,38.95841345,151.18,151.09,30.49003619]
[1745512818615,38.95841345,151.18,151.09,32.38163619]
[1745512818616,6.6131,151.15,151.09,32.38163619]
[1745512818821,14.09841345,151.18,151.09,32.38163619]
[1745512819024,14.09841345,151.18,151.11,6.6145]
[1745512819217,6.6135,151.15,151.11,6.6145]
[1745512819516,14.09841345,151.18,151.11,6.6145]
[1745512819717,6.6135,151.15,151.11,6.6145]
[1745512820126,14.09841345,151.18,151.11,6.6145]
[1745512821426,6.6137,151.14,151.11,6.6145]
[1745512822623,6.6137,151.14,151.12,6.6143]
[1745512822825,14.09841345,151.18,151.09,15.99001345]
[1745512823327,6.6139,151.14,151.09,1.8916]
[1745512823831,6.6139,151.14,151.11,6.6148]
[1745512828033,6.6133,151.15,151.12,6.6143]
[1745512828233,14.09841345,151.16,151.09,1.8916]
[1745512828429,14.09841345,151.16,151.08,24.86]
[1745512829338,14.09841345,151.16,151.09,6.6155]
[1745512830137,6.6146,151.12,151.09,6.6155]
[1745512830435,6.6146,151.12,151.1,1.6535349]
[1745512830638,6.6138,151.14,151.1,1.6535349]
[1745512831235,6.6141,151.13,151.11,1.6535349]
[1745512831738,6.6141,151.13,151.12,1.6535349]
[1745512831934,6.6137,151.14,151.12,1.6535349]
[1745512832236,6.6137,151.14,151.13,1.6535349]
[1745512833436,15.64481608,151.14,151.13,1.6535349]
[1745512835540,9.03111608,151.14,151.13,1.6535349]
[1745512836941,15.64471608,151.14,151.13,1.6535349]
[1745512848951,6.6155,151.1,151.06,370.01821608]
[1745512849147,15.64661608,151.1,151.06,15.01821608]
[1745512849547,9.03111608,151.1,151.06,15.01821608]
[1745512849746,6.615,151.11,151.06,15.01821608]
[1745512850246,6.615,151.11,151.07,9.03111608]
[1745512850643,9.03111608,151.13,151.08,9.03111608]
[1745512851350,6.6145,151.12,151.1,6.6152]
[1745512851644,9.03111608,151.13,151.1,6.6152]
[1745512851850,6.6138,151.14,151.11,6.6146]
[1745512852050,6.6138,151.14,151.11,15.64571608]
[1745512852250,24.86,151.15,151.11,9.03111608]
[1745512852548,31.4732,151.15,151.13,6.614]
[1745512852848,24.86,151.15,151.13,6.614]
[1745512853147,15.64401608,151.16,151.13,6.614]
[1745512854351,6.6132,151.15,151.12,6.6142]
[1745512854550,15.64431608,151.15,151.12,6.6142]
[1745512855252,6.6132,151.15,151.13,6.614]
[1745512855453,15.64431608,151.15,151.13,6.614]
[1745512855753,15.64431608,151.15,151.11,9.03111608]
[1745512855958,15.64431608,151.15,151.12,6.6143]
[1745512857855,6.6136,151.14,151.11,15.64581608]
[1745512858050,6.6136,151.14,151.11,9.03111608]
[1745512858253,9.03111608,151.15,151.11,9.03111608]
[1745512858455,6.6133,151.15,151.12,6.6141]
[1745512858655,9.03111608,151.16,151.12,9.03111608]
[1745512858954,15.64401608,151.16,151.12,9.03111608]
[1745512859155,9.03111608,151.15,151.11,9.03111608]
[1745512859356,9.03111608,151.15,151.1,9.03111608]
[1745512859654,15.64451608,151.15,151.12,6.6142]
[1745512859955,6.6138,151.14,151.1,9.03111608]
[1745512860158,15.64491608,151.14,151.1,9.03111608]
[1745512860452,9.03111608,151.14,151.11,6.6146]
[1745512860653,15.64491608,151.14,151.11,6.6146]
[1745512861458,15.64491608,151.14,151.12,6.6143]
[1745512861757,15.64491608,151.14,151.13,1.65360908]
[1745512861955,6.6138,151.14,151.13,1.65360908]
[1745512862259,15.64441608,151.15,151.13,1.65360908]
[1745512862852,15.64441608,151.15,151.14,1.65360908]
[1745512865459,15.64391608,151.16,151.14,8.26720908]
[1745512865664,9.03111608,151.17,151.14,1.65360908]
[1745512865960,15.64361608,151.17,151.15,8.26670908]
[1745512866161,15.64361608,151.17,151.15,1.65360908]
[1745512866362,15.64361608,151.17,151.16,1.65360908]
[1745512866660,6.6117,151.19,151.16,1.65360908]
[1745512867061,6.6117,151.19,151.17,1.65360908]
[1745512867358,9.03111608,151.2,151.17,1.65360908]
[1745512867359,24.86,151.21,151.18,9.03111608]
[1745512867562,9.03111608,151.23,151.19,10.68472516]
[1745512867758,24.86,151.24,151.22,6.6098]
[1745512867965,33.87111608,151.27,151.22,9.03111608]
[1745512868363,33.87111608,151.27,151.23,8.26300908]
[1745512868555,9.03111608,151.26,151.23,8.26300908]
[1745512868758,15.63971608,151.26,151.23,8.26300908]
[1745512869060,9.03111608,151.26,151.23,8.26300908]
[1745512869465,9.03111608,151.26,151.24,1.65360908]
[1745512869764,6.6087,151.25,151.24,1.65360908]
[1745512870663,15.63981608,151.25,151.24,1.65360908]
[1745512870868,6.6104,151.22,151.18,9.03111608]
[1745512871068,9.03111608,151.2,151.16,9.03111608]
[1745512871369,6.6125,151.17,151.14,24.84]
[1745512871567,15.64361608,151.17,151.14,24.84]
[1745512872968,15.64361608,151.17,151.14,6.6135]
[1745512873669,15.64311608,151.18,151.15,6.613]
[1745512875669,9.03111608,151.2,151.15,9.03111608]
[1745512875968,33.87111608,151.21,151.16,9.03111608]
[1745512876167,33.87111608,151.21,151.17,9.03111608]
[1745512876468,40.48191608,151.21,151.18,6.6117]
[1745512876763,33.87111608,151.21,151.18,6.6117]
[1745512877068,9.03111608,151.2,151.16,9.03111608]
[1745512878269,6.6114,151.19,151.16,15.64351608]
[1745512878864,6.6119,151.18,151.16,15.64351608]
[1745512879568,6.6116,151.19,151.17,6.6121]
[1745512879770,9.03111608,151.2,151.16,9.03111608]
[1745512879971,6.6103,151.22,151.18,9.03111608]
[1745512880270,9.03111608,151.22,151.18,9.03111608]
[1745512880470,9.03111608,151.22,151.15,24.84]
[1745512880471,6.6118,151.18,151.15,33.87111608]
[1745512881370,9.03111608,151.18,151.15,24.84]
[1745512881566,9.03111608,151.18,151.13,9.03111608]
[1745512881869,6.613,151.16,151.13,9.03111608]
[1745512882075,9.03111608,151.17,151.12,33.87111608]
[1745512882271,9.03111608,151.17,151.13,9.03111608]
[1745512882570,6.6125,151.17,151.14,6.6135]
[1745512883071,15.64311608,151.18,151.14,9.03111608]
[1745512883369,24.84,151.2,151.16,9.03111608]
[1745512883566,24.84,151.2,151.17,9.03111608]
[1745512883971,9.03111608,151.22,151.18,9.03111608]
[1745512884171,9.03111608,151.22,151.17,9.03111608]
[1745512884172,6.6105,151.21,151.17,9.03111608]
[1745512884373,15.64161608,151.21,151.17,9.03111608]
[1745512884873,15.64161608,151.21,151.18,6.6116]
[1745512885374,6.6102,151.22,151.19,6.6111]
[1745512886175,6.6102,151.22,151.2,6.6108]
[1745512886368,33.87111608,151.23,151.19,9.03111608]
[1745512886980,24.84,151.23,151.2,9.03111608]
[1745512887182,24.84,151.23,151.21,9.03111608]
[1745512887472,33.87111608,151.26,151.21,9.03111608]
[1745512887681,9.03111608,151.25,151.22,6.6101]
[1745512887877,9.03111608,151.24,151.17,5.8419]
[1745512888077,6.6096,151.23,151.21,6.6104]
[1745512888277,9.03111608,151.24,151.21,6.6104]
[1745512888575,15.64051608,151.24,151.21,6.6104]
[1745512888774,15.64051608,151.24,151.22,6.6099]
[1745512888982,15.64051608,151.24,151.2,9.03111608]
[1745512889277,15.64051608,151.24,151.21,6.6103]
[1745512889573,9.03111608,151.23,151.21,6.6103]
[1745512889878,9.03111608,151.22,151.18,6.6116]
[1745512890068,9.03111608,151.21,151.18,6.6116]
[1745512890373,9.03111608,151.21,151.19,6.6112]
[1745512890578,6.6103,151.22,151.19,9.03111608]
[1745512891076,9.03111608,151.22,151.19,6.6112]
[1745512891774,9.03111608,151.22,151.18,15.64271608]
[1745512891970,24.84,151.26,151.18,15.64271608]
[1745512891971,9.03111608,151.21,151.18,9.03111608]
[1745512892170,6.6112,151.2,151.17,9.03111608]
[1745512892476,6.6112,151.2,151.18,6.6116]
[1745512892678,6.6114,151.19,151.16,9.03111608]
[1745512893076,6.613,151.16,151.13,33.87111608]
[1745512893281,6.613,151.16,151.12,10.94531608]
[1745512893480,9.03111608,151.17,151.12,10.94531608]
[1745512893674,6.6125,151.17,151.13,9.03111608]
[1745512894180,6.6125,151.17,151.14,6.6135]
[1745512894381,6.6128,151.16,151.14,6.6135]
[1745512894579,6.6128,151.16,151.13,9.03111608]
[1745512895180,6.6124,151.17,151.14,6.6133]
[1745512895383,6.6124,151.17,151.13,9.03111608]
[1745512895785,6.6124,151.17,151.14,6.6135]
[1745512895981,6.6124,151.17,151.13,9.03111608]
[1745512896383,6.6124,151.17,151.14,6.6133]
[1745512896683,15.64311608,151.18,151.14,6.6133]
[1745512896981,15.64311608,151.18,151.15,6.613]
[1745512897181,15.64251608,151.19,151.14,9.03111608]
[1745512897579,9.03111608,151.2,151.16,9.03111608]
[1745512897779,14.86001608,151.21,151.16,9.03111608]
[1745512898074,6.611,151.2,151.16,9.03111608]
[1745512898381,24.84,151.22,151.16,9.03111608]
[1745512898587,33.87111608,151.22,151.18,9.03111608]
[1745512898886,9.03111608,151.21,151.17,9.03111608]
[1745512899082,9.03111608,151.21,151.16,9.03111608]
[1745512899278,9.03111608,151.21,151.17,9.03111608]
[1745512899487,15.64161608,151.21,151.18,6.6114]
[1745512899886,9.03111608,151.21,151.17,9.03111608]
[1745512900180,6.6112,151.2,151.17,15.64311608]
[1745512900893,6.6112,151.2,151.18,6.6117]
[1745512902292,6.6112,151.2,151.17,15.64311608]
[1745512902595,9.03111608,151.21,151.17,15.64311608]
[1745512902893,9.03111608,151.21,151.18,6.6117]
[1745512903393,9.03111608,151.21,151.17,9.03111608]
[1745512903591,6.611,151.2,151.17,9.03111608]
[1745512904291,6.611,151.2,151.17,15.64301608]
[1745512904591,6.611,151.2,151.17,9.03111608]
[1745512904792,15.64171608,151.21,151.17,9.03111608]
[1745512905286,9.03111608,151.21,151.18,6.6116]
[1745512905991,6.6112,151.2,151.17,15.64311608]
[1745512906496,6.6112,151.2,151.18,6.6118]
[1745512907902,6.6118,151.18,151.17,9.03111608]
[1745512908102,9.03111608,151.19,151.12,9.03111608]
[1745512908304,9.03111608,151.17,151.12,9.03111608]
[1745512908506,9.03111608,151.17,151.14,6.6135]
[1745512908803,6.6129,151.16,151.14,6.6135]
[1745512909099,9.03111608,151.17,151.13,6.6139]
[1745512909603,6.6133,151.15,151.12,15.64531608]
[1745512909804,6.6133,151.15,151.12,9.03111608]
[1745512910004,24.82,151.18,151.12,9.03111608]
[1745512910203,6.6125,151.17,151.14,6.6132]
[1745512910600,6.6128,151.16,151.14,6.6132]
[1745512911904,6.6135,151.15,151.12,15.64541608]
[1745512912103,6.6135,151.15,151.12,6.6143]
[1745512912505,6.6142,151.13,151.1,15.64621608]
[1745512913003,9.03111608,151.14,151.09,6.6156]
[1745512913406,33.85111608,151.14,151.09,6.6156]
[1745512914300,9.03111608,151.12,151.09,6.6156]
[1745512914506,9.03111608,151.12,151.07,9.03111608]
[1745512914905,9.03111608,151.12,151.07,15.64761608]
[1745512915108,9.03111608,151.1,151.07,15.64761608]
[1745512915607,15.64661608,151.1,151.07,9.03111608]
[1745512915909,15.64661608,151.1,151.08,6.6161]
[1745512916506,9.03111608,151.1,151.08,6.6161]
[1745512917308,9.03111608,151.1,151.09,6.6157]
[1745512917509,6.6151,151.11,151.09,6.6157]
[1745512918109,6.6151,151.11,151.07,9.03111608]
[1745512918110,6.6151,151.11,151.08,6.616]
[1745512918511,6.6153,151.1,151.07,15.64751608]
[1745512919916,6.6158,151.09,151.07,15.64751608]
[1745512920110,9.03111608,151.12,151.07,15.64751608]
[1745512920413,6.6155,151.1,151.07,15.64751608]
[1745512920616,9.03111608,151.12,151.08,6.6161]
[1745512920916,6.6152,151.11,151.08,6.6161]
[1745512921715,15.64571608,151.12,151.08,9.03111608]
[1745512921916,24.82,151.14,151.1,9.03111608]
[1745512922214,35.89311608,151.17,151.12,9.03111608]
[1745512922415,42.50551608,151.17,151.14,6.6133]
[1745512922616,31.4324,151.17,151.14,6.6133]
[1745512923315,6.6127,151.16,151.14,6.6133]
[1745512923515,6.6127,151.16,151.13,15.64491608]
[1745512924712,33.85111608,151.18,151.14,6.6136]
[1745512925116,24.82,151.18,151.14,9.03111608]
[1745512925417,24.82,151.18,151.15,15.64401608]
[1745512926016,30.7208,151.21,151.17,9.03111608]
[1745512926215,39.75191608,151.21,151.17,9.03111608]
[1745512926916,6.6117,151.19,151.17,9.03111608]
[1745512927515,6.6117,151.19,151.17,15.64331608]
[1745512928417,6.6117,151.19,151.17,9.03111608]
[1745512928717,9.03111608,151.2,151.15,9.03111608]
[1745512929011,24.82,151.21,151.19,9.03111608]
[1745512929618,31.4307,151.21,151.19,9.03111608]
[1745512929814,24.82,151.21,151.19,9.03111608]
[1745512930215,31.4307,151.21,151.19,9.03111608]
[1745512930419,24.82,151.21,151.19,15.64241608]
[1745512931523,24.82,151.21,151.19,9.03111608]
[1745512931719,9.03111608,151.2,151.1,1.9622]
[1745512931922,9.03111608,151.16,151.12,9.03111608]